[Event "*** Titled Tuesday Blitz"]
[Site "Chess.com"]
[Date "2018.08.07"]
[Round "3"]
[White "MarshKnight"]
[Black "ChrisTool2"]
[Result "0-1"]
[WhiteElo "2108"]
[BlackElo "2255"]
[TimeControl "180+2"]
[EndTime "13:34:26 PDT"]
[Termination "ChrisTool2 won by resignation"]

1. e4 {[%clk 0:03:01.9]} 1... c5 {[%clk 0:02:53.9]} 2. Nf3 {[%clk 0:03:01.9]}
2... e6 {[%clk 0:02:54.3]} 3. d4 {[%clk 0:03:02.1]} 3... cxd4 {[%clk 0:02:56.2]}
4. Nxd4 {[%clk 0:03:03.2]} 4... a6 {[%clk 0:02:56.7]} 5. c4 {[%clk 0:03:04]}
5... b6 {[%clk 0:02:52.7]} 6. Nc3 {[%clk 0:03:04.2]} 6... Bb7 {[%clk 0:02:50.1]}
7. Be3 {[%clk 0:03:04.7]} 7... Qc7 {[%clk 0:02:50.6]} 8. Be2 {[%clk 0:03:03.8]}
8... d6 {[%clk 0:02:50.7]} 9. O-O {[%clk 0:03:02.5]} 9... Nf6 {[%clk 0:02:50.7]}
10. f3 {[%clk 0:03:02.5]} 10... Nbd7 {[%clk 0:02:51.2]} 11. Rc1 {[%clk
0:03:00.1]} 11... Be7 {[%clk 0:02:51.3]} 12. a3 {[%clk 0:02:59.9]} 12... O-O
{[%clk 0:02:50.5]} 13. b4 {[%clk 0:03:00.8]} 13... Rac8 {[%clk 0:02:50.5]} 14.
Qb3 {[%clk 0:03:00.5]} 14... Qb8 {[%clk 0:02:41.2]} 15. Rfd1 {[%clk 0:03:01.3]}
15... Rfe8 {[%clk 0:02:32.9]} 16. Bf2 {[%clk 0:02:54.1]} 16... Ne5 {[%clk
0:01:47.7]} 17. Bf1 {[%clk 0:02:29.4]} 17... h5 {[%clk 0:01:46.6]} 18. Nc2
{[%clk 0:01:57.2]} 18... Ng6 {[%clk 0:01:23.2]} 19. Bxb6 {[%clk 0:01:46.6]}
19... Bxe4 {[%clk 0:01:01.2]} 20. fxe4 {[%clk 0:01:36.8]} 20... Qxb6+ {[%clk
0:01:00.1]} 21. Kh1 {[%clk 0:01:37.9]} 21... Ng4 {[%clk 0:00:57.4]} 22. c5
{[%clk 0:01:30.8]} 22... dxc5 {[%clk 0:00:54.5]} 23. Na4 {[%clk 0:01:31]} 23...
Qa7 {[%clk 0:00:50.5]} 24. Rd2 {[%clk 0:01:16.9]} 24... cxb4 {[%clk 0:00:43]}
25. h3 {[%clk 0:01:00.3]} 25... Nf2+ {[%clk 0:00:35.2]} 26. Kh2 {[%clk 0:01:01]}
26... Bg5 {[%clk 0:00:32.1]} 27. Rcd1 {[%clk 0:00:42.7]} 27... Nxd1 {[%clk
0:00:28.9]} 28. Rxd1 {[%clk 0:00:42.8]} 28... bxa3 {[%clk 0:00:23.7]} 29. Nxa3
{[%clk 0:00:42.1]} 29... h4 {[%clk 0:00:24.2]} 30. Nc4 {[%clk 0:00:21.4]} 30...
Bf4+ {[%clk 0:00:22]} 31. Kh1 {[%clk 0:00:23]} 31... Red8 {[%clk 0:00:21.7]} 32.
Rb1 {[%clk 0:00:20]} 32... Qf2 {[%clk 0:00:20.9]} 33. Nab6 {[%clk 0:00:09.6]}
33... Rb8 {[%clk 0:00:19]} 34. Bd3 {[%clk 0:00:06.6]} 34... Qg3 {[%clk
0:00:18.4]} 35. Kg1 {[%clk 0:00:04.7]} 35... Be3+ {[%clk 0:00:19.3]} 36. Kh1
{[%clk 0:00:04.4]} 36... Nf4 {[%clk 0:00:20.8]} 37. Nxe3 {[%clk 0:00:04.9]}
37... Qxe3 {[%clk 0:00:19.6]} 38. Qc2 {[%clk 0:00:05.6]} 38... Nxd3 {[%clk
0:00:18.5]} 39. Nc4 {[%clk 0:00:05]} 39... Rxb1+ {[%clk 0:00:18.1]} 40. Qxb1
{[%clk 0:00:06.9]} 40... Qe1+ {[%clk 0:00:18.4]} 0-1

[Event "*** Titled Tuesday Blitz"]
[Site "Chess.com"]
[Date "2018.08.07"]
[Round "3"]
[White "b_6"]
[Black "Drags95"]
[Result "0-1"]
[WhiteElo "2387"]
[BlackElo "2617"]
[TimeControl "180+2"]
[EndTime "13:34:26 PDT"]
[Termination "Drags95 won on time"]

1. d4 {[%clk 0:03:01.9]} 1... Nf6 {[%clk 0:02:56.1]} 2. Bf4 {[%clk 0:03:01.4]}
2... e6 {[%clk 0:02:56.7]} 3. e3 {[%clk 0:03:02.4]} 3... d5 {[%clk 0:02:57.7]}
4. Nd2 {[%clk 0:03:03.6]} 4... b6 {[%clk 0:02:58.5]} 5. Bd3 {[%clk 0:03:01.8]}
5... Bb7 {[%clk 0:02:59.7]} 6. Ngf3 {[%clk 0:02:57.8]} 6... c5 {[%clk
0:03:00.8]} 7. c3 {[%clk 0:02:58.6]} 7... Nc6 {[%clk 0:02:08.1]} 8. Ne5 {[%clk
0:02:46.1]} 8... Nxe5 {[%clk 0:02:06.8]} 9. Bxe5 {[%clk 0:02:46.1]} 9... Nd7
{[%clk 0:02:04.3]} 10. Bg3 {[%clk 0:02:40.7]} 10... g6 {[%clk 0:02:00.5]} 11.
O-O {[%clk 0:02:12.7]} 11... Bg7 {[%clk 0:01:59.3]} 12. Bb5 {[%clk 0:02:06.1]}
12... O-O {[%clk 0:01:55.2]} 13. Bd6 {[%clk 0:01:52.5]} 13... Re8 {[%clk
0:01:48.4]} 14. Nf3 {[%clk 0:01:53.5]} 14... cxd4 {[%clk 0:01:41.9]} 15. cxd4
{[%clk 0:01:41.5]} 15... a6 {[%clk 0:01:43.1]} 16. Bd3 {[%clk 0:01:37.1]} 16...
b5 {[%clk 0:01:39.7]} 17. a4 {[%clk 0:01:31.6]} 17... Nb6 {[%clk 0:01:36.3]} 18.
Be5 {[%clk 0:01:21.2]} 18... Nxa4 {[%clk 0:01:37.3]} 19. Bxg7 {[%clk 0:01:16.1]}
19... Kxg7 {[%clk 0:01:38]} 20. Qe2 {[%clk 0:01:08.8]} 20... Qe7 {[%clk
0:01:36.7]} 21. Rfc1 {[%clk 0:00:58.2]} 21... Rec8 {[%clk 0:01:37.2]} 22. Ne5
{[%clk 0:00:55.1]} 22... Qb4 {[%clk 0:01:32.2]} 23. Nd7 {[%clk 0:00:52.4]} 23...
Qxb2 {[%clk 0:01:20.8]} 24. Qd1 {[%clk 0:00:41.5]} 24... Rxc1 {[%clk 0:01:08.2]}
25. Rxc1 {[%clk 0:00:41.8]} 25... Rc8 {[%clk 0:01:09.8]} 26. Rxc8 {[%clk
0:00:14.5]} 26... Bxc8 {[%clk 0:01:11.5]} 27. Ne5 {[%clk 0:00:14.9]} 27... f6
{[%clk 0:01:04]} 28. Nf3 {[%clk 0:00:08.7]} 28... Nc3 {[%clk 0:01:01.4]} 29. Qf1
{[%clk 0:00:09.4]} 29... a5 {[%clk 0:01:00.4]} 30. g4 {[%clk 0:00:06.3]} 30...
a4 {[%clk 0:00:58.8]} 31. g5 {[%clk 0:00:07.7]} 31... f5 {[%clk 0:01:00.2]} 32.
Qh3 {[%clk 0:00:08.8]} 32... Qc1+ {[%clk 0:00:53]} 33. Kg2 {[%clk 0:00:09.6]}
33... Ne4 {[%clk 0:00:54.2]} 34. Qh6+ {[%clk 0:00:09.6]} 34... Kg8 {[%clk
0:00:52.9]} 35. Bxe4 {[%clk 0:00:10.6]} 35... dxe4 {[%clk 0:00:53.8]} 36. Ne5
{[%clk 0:00:12]} 36... Qc7 {[%clk 0:00:47.1]} 37. Nxg6 {[%clk 0:00:09.6]} 37...
Qg7 {[%clk 0:00:41.6]} 38. Ne7+ {[%clk 0:00:06.8]} 38... Qxe7 {[%clk 0:00:41.9]}
39. Kf1 {[%clk 0:00:04.2]} 39... Qf7 {[%clk 0:00:28.6]} 40. h4 {[%clk
0:00:02.6]} 40... a3 {[%clk 0:00:29.9]} 0-1

[Event "*** Titled Tuesday Blitz"]
[Site "Chess.com"]
[Date "2018.08.07"]
[Round "3"]
[White "Keranke"]
[Black "jk13"]
[Result "1-0"]
[WhiteElo "2830"]
[BlackElo "2511"]
[TimeControl "180+2"]
[EndTime "13:34:38 PDT"]
[Termination "Keranke won by resignation"]

1. d4 {[%clk 0:03:01.9]} 1... Nf6 {[%clk 0:02:59.3]} 2. Bf4 {[%clk 0:03:02.1]}
2... e6 {[%clk 0:03:00.2]} 3. e3 {[%clk 0:03:03]} 3... d5 {[%clk 0:03:02.1]} 4.
Nf3 {[%clk 0:03:04.3]} 4... c5 {[%clk 0:03:03.3]} 5. Nc3 {[%clk 0:03:05.1]} 5...
Nc6 {[%clk 0:03:04.9]} 6. Nb5 {[%clk 0:03:05.7]} 6... e5 {[%clk 0:02:35.8]} 7.
dxe5 {[%clk 0:03:06.4]} 7... a6 {[%clk 0:02:36.2]} 8. Nc3 {[%clk 0:03:03.8]}
8... d4 {[%clk 0:02:31]} 9. exf6 {[%clk 0:02:51.3]} 9... dxc3 {[%clk 0:02:32.9]}
10. Qxd8+ {[%clk 0:02:51.4]} 10... Nxd8 {[%clk 0:02:30.8]} 11. bxc3 {[%clk
0:02:51.9]} 11... gxf6 {[%clk 0:02:24.7]} 12. a4 {[%clk 0:02:37.6]} 12... Bd7
{[%clk 0:02:20.3]} 13. Bc4 {[%clk 0:02:34.8]} 13... Ne6 {[%clk 0:02:20.7]} 14.
Bg3 {[%clk 0:02:35.4]} 14... Bc6 {[%clk 0:02:22.3]} 15. O-O {[%clk 0:02:31.4]}
15... O-O-O {[%clk 0:02:23.1]} 16. Rfd1 {[%clk 0:02:27.4]} 16... Rxd1+ {[%clk
0:02:18.7]} 17. Rxd1 {[%clk 0:02:27.9]} 17... Bxa4 {[%clk 0:02:20.4]} 18. Bb3
{[%clk 0:02:26]} 18... Bc6 {[%clk 0:02:12.8]} 19. Nh4 {[%clk 0:02:23.2]} 19...
Be7 {[%clk 0:01:36.3]} 20. Nf5 {[%clk 0:02:23.9]} 20... Re8 {[%clk 0:01:37]} 21.
Bh4 {[%clk 0:02:07.8]} 21... Be4 {[%clk 0:01:10.1]} 22. Nxe7+ {[%clk 0:02:05.2]}
22... Rxe7 {[%clk 0:01:12]} 23. Bxf6 {[%clk 0:02:06.5]} 23... Rd7 {[%clk
0:01:13.7]} 24. Rxd7 {[%clk 0:02:03.2]} 24... Kxd7 {[%clk 0:01:14.5]} 25. f3
{[%clk 0:02:04.8]} 25... Bc6 {[%clk 0:01:14.8]} 26. Kf2 {[%clk 0:01:56.9]} 26...
b5 {[%clk 0:01:14.2]} 27. e4 {[%clk 0:01:46.3]} 27... c4 {[%clk 0:01:13.9]} 28.
Ba2 {[%clk 0:01:47.1]} 28... Nc5 {[%clk 0:01:07.6]} 29. Ke3 {[%clk 0:01:46.6]}
29... Ke6 {[%clk 0:01:07.6]} 30. Bd4 {[%clk 0:01:47.3]} 30... Nd7 {[%clk
0:01:08.5]} 31. g4 {[%clk 0:01:47.4]} 31... f6 {[%clk 0:01:08.3]} 32. f4 {[%clk
0:01:46.7]} 32... h6 {[%clk 0:01:07.2]} 33. f5+ {[%clk 0:01:45.4]} 33... Kd6
{[%clk 0:01:01.7]} 34. Kf4 {[%clk 0:01:44.5]} 34... Ne5 {[%clk 0:01:01.7]} 35.
h4 {[%clk 0:01:45.4]} 35... Bb7 {[%clk 0:00:59]} 36. Be3 {[%clk 0:01:25.4]}
36... Nf7 {[%clk 0:00:57.2]} 37. Bb6 {[%clk 0:01:21]} 37... Ke7 {[%clk
0:00:40.4]} 38. Bc5+ {[%clk 0:01:19.4]} 38... Ke8 {[%clk 0:00:41.3]} 39. Bd4
{[%clk 0:01:19.6]} 39... Ke7 {[%clk 0:00:41.4]} 40. e5 {[%clk 0:01:21.1]} 40...
fxe5+ {[%clk 0:00:38.3]} 41. Bxe5 {[%clk 0:01:23]} 41... Nxe5 {[%clk 0:00:30.2]}
42. Kxe5 {[%clk 0:01:24.9]} 42... Bf3 {[%clk 0:00:29.3]} 43. g5 {[%clk
0:01:25.8]} 43... h5 {[%clk 0:00:30.6]} 44. g6 {[%clk 0:01:17.9]} 44... Kf8
{[%clk 0:00:24.1]} 45. f6 {[%clk 0:01:05]} 45... Bg4 {[%clk 0:00:22.4]} 46. f7
{[%clk 0:01:02.3]} 46... Kg7 {[%clk 0:00:21.7]} 47. Kd6 {[%clk 0:01:03.6]} 47...
Kf8 {[%clk 0:00:17.7]} 48. Ke5 {[%clk 0:01:01.3]} 48... Kg7 {[%clk 0:00:18.8]}
49. Bb1 {[%clk 0:00:59.1]} 49... Bf3 {[%clk 0:00:16.3]} 50. Ke6 {[%clk
0:00:58.9]} 1-0

[Event "*** Titled Tuesday Blitz"]
[Site "Chess.com"]
[Date "2018.08.07"]
[Round "3"]
[White "nailbeshirli"]
[Black "LastHeroJr"]
[Result "0-1"]
[WhiteElo "2511"]
[BlackElo "2508"]
[TimeControl "180+2"]
[EndTime "13:34:40 PDT"]
[Termination "LastHeroJr won by resignation"]

1. e4 {[%clk 0:03:01.7]} 1... e5 {[%clk 0:03:00.7]} 2. Nf3 {[%clk 0:03:02.9]}
2... Nc6 {[%clk 0:03:02]} 3. Bb5 {[%clk 0:03:04]} 3... a6 {[%clk 0:03:03.3]} 4.
Ba4 {[%clk 0:03:05.1]} 4... Nf6 {[%clk 0:03:04.6]} 5. O-O {[%clk 0:03:06.4]}
5... Be7 {[%clk 0:03:05.9]} 6. Re1 {[%clk 0:03:07.5]} 6... b5 {[%clk 0:03:06.9]}
7. Bb3 {[%clk 0:03:09.1]} 7... d6 {[%clk 0:03:08.1]} 8. a4 {[%clk 0:03:10.8]}
8... b4 {[%clk 0:03:06.7]} 9. d4 {[%clk 0:03:12.1]} 9... Bg4 {[%clk 0:02:47.6]}
10. dxe5 {[%clk 0:03:11]} 10... Nxe5 {[%clk 0:02:48.1]} 11. Nbd2 {[%clk
0:03:11.3]} 11... O-O {[%clk 0:02:48.4]} 12. h3 {[%clk 0:03:12.5]} 12... Bh5
{[%clk 0:02:49.3]} 13. g4 {[%clk 0:03:13.3]} 13... Bg6 {[%clk 0:02:35.8]} 14.
Nh2 {[%clk 0:02:58]} 14... h6 {[%clk 0:01:57.7]} 15. f4 {[%clk 0:02:58.6]} 15...
Ned7 {[%clk 0:01:58.9]} 16. f5 {[%clk 0:02:53.5]} 16... Bh7 {[%clk 0:01:59.9]}
17. Ndf3 {[%clk 0:02:46.9]} 17... Nc5 {[%clk 0:01:59.8]} 18. g5 {[%clk
0:02:46.2]} 18... hxg5 {[%clk 0:01:53.6]} 19. Nxg5 {[%clk 0:02:46.5]} 19... Nxb3
{[%clk 0:01:41.2]} 20. cxb3 {[%clk 0:02:48.4]} 20... Nd7 {[%clk 0:01:32]} 21.
Nxh7 {[%clk 0:02:45.8]} 21... Kxh7 {[%clk 0:01:33.9]} 22. Qh5+ {[%clk
0:02:46.8]} 22... Kg8 {[%clk 0:01:35.2]} 23. Bf4 {[%clk 0:02:38.9]} 23... Bf6
{[%clk 0:01:06.1]} 24. Ng4 {[%clk 0:02:40]} 24... Bxb2 {[%clk 0:01:06]} 25. Ra2
{[%clk 0:02:40.8]} 25... Bd4+ {[%clk 0:01:05.5]} 26. Kh1 {[%clk 0:02:42.2]}
26... Nf6 {[%clk 0:00:57]} 27. Nh6+ {[%clk 0:02:38.4]} 27... Kh7 {[%clk
0:00:48.2]} 28. Qh4 {[%clk 0:02:20]} 28... Nxe4 {[%clk 0:00:49.1]} 29. Qxd8
{[%clk 0:02:17.4]} 29... Nf2+ {[%clk 0:00:49.1]} 30. Rxf2 {[%clk 0:02:06.4]}
30... Raxd8 {[%clk 0:00:50]} 31. Ng4 {[%clk 0:01:36]} 31... Bxf2 {[%clk
0:00:50.9]} 32. Nxf2 {[%clk 0:01:37.9]} 32... Rfe8 {[%clk 0:00:52.4]} 33. Rc1
{[%clk 0:01:39]} 33... Re2 {[%clk 0:00:53.3]} 34. Kg2 {[%clk 0:01:40]} 34... c5
{[%clk 0:00:54]} 35. Kf3 {[%clk 0:01:37.1]} 35... Rb2 {[%clk 0:00:54.8]} 36. Ne4
{[%clk 0:01:38.8]} 36... Rxb3+ {[%clk 0:00:55.6]} 37. Kg4 {[%clk 0:01:40.5]}
37... Rd3 {[%clk 0:00:53.4]} 38. f6 {[%clk 0:01:36.7]} 38... gxf6 {[%clk
0:00:50.2]} 39. Kf5 {[%clk 0:01:37.9]} 39... Rxh3 {[%clk 0:00:36.8]} 40. Nxf6+
{[%clk 0:01:10.6]} 40... Kh8 {[%clk 0:00:35.6]} 41. Kg4 {[%clk 0:01:09.7]} 41...
Kg7 {[%clk 0:00:28.5]} 42. Ne4 {[%clk 0:00:35.9]} 42... f5+ {[%clk 0:00:28.9]}
43. Kxf5 {[%clk 0:00:36.1]} 43... Rf8+ {[%clk 0:00:30]} 44. Kg4 {[%clk
0:00:36.3]} 44... Rh4+ {[%clk 0:00:30.7]} 0-1

[Event "*** Titled Tuesday Blitz"]
[Site "Chess.com"]
[Date "2018.08.07"]
[Round "3"]
[White "Marcan2b"]
[Black "Alohamora11"]
[Result "0-1"]
[WhiteElo "2296"]
[BlackElo "2210"]
[TimeControl "180+2"]
[EndTime "13:34:47 PDT"]
[Termination "Alohamora11 won by resignation"]

1. e4 {[%clk 0:03:01.2]} 1... c5 {[%clk 0:02:59.9]} 2. Nc3 {[%clk 0:03:00.9]}
2... g6 {[%clk 0:03:00.9]} 3. d4 {[%clk 0:03:01]} 3... cxd4 {[%clk 0:03:01.3]}
4. Qxd4 {[%clk 0:03:01.7]} 4... Nf6 {[%clk 0:03:01.4]} 5. Nf3 {[%clk 0:03:02.3]}
5... Nc6 {[%clk 0:03:01.2]} 6. Qa4 {[%clk 0:03:02.9]} 6... d6 {[%clk 0:02:57.5]}
7. e5 {[%clk 0:03:01.4]} 7... Ng4 {[%clk 0:02:50.5]} 8. exd6 {[%clk 0:02:59]}
8... Bg7 {[%clk 0:02:19.8]} 9. h3 {[%clk 0:02:53.7]} 9... Ne5 {[%clk 0:02:15.1]}
10. Nxe5 {[%clk 0:02:53.3]} 10... Bxe5 {[%clk 0:02:17]} 11. dxe7 {[%clk
0:02:41.9]} 11... Qxe7 {[%clk 0:02:15.2]} 12. Be2 {[%clk 0:02:41.9]} 12... O-O
{[%clk 0:02:12.2]} 13. Be3 {[%clk 0:02:42.5]} 13... Be6 {[%clk 0:02:01.9]} 14.
O-O {[%clk 0:02:40.8]} 14... a6 {[%clk 0:01:48.2]} 15. Rfe1 {[%clk 0:02:27.8]}
15... b5 {[%clk 0:01:43.4]} 16. Qe4 {[%clk 0:02:26.5]} 16... Rac8 {[%clk
0:01:43.3]} 17. Bf3 {[%clk 0:02:07.7]} 17... Bf5 {[%clk 0:01:39.5]} 18. Qd5
{[%clk 0:02:04]} 18... Nb4 {[%clk 0:01:33.4]} 19. Qd2 {[%clk 0:01:50.7]} 19...
Rfd8 {[%clk 0:01:27.2]} 20. Qc1 {[%clk 0:01:26.6]} 20... Nxc2 {[%clk 0:01:23]}
21. Bf4 {[%clk 0:01:24.7]} 21... Nxe1 {[%clk 0:01:18.7]} 22. Qxe1 {[%clk
0:01:24.2]} 22... Re8 {[%clk 0:01:15.8]} 23. Nd5 {[%clk 0:01:22.5]} 23... Qd6
{[%clk 0:00:52.5]} 24. Bxe5 {[%clk 0:01:02.2]} 24... Rxe5 {[%clk 0:00:54.4]} 25.
Qd2 {[%clk 0:01:01.6]} 25... Rc2 {[%clk 0:00:46]} 26. Qg5 {[%clk 0:00:58.4]}
26... Rxd5 {[%clk 0:00:27.7]} 27. Bxd5 {[%clk 0:00:54.9]} 27... Qxd5 {[%clk
0:00:29.6]} 28. Re1 {[%clk 0:00:54.5]} 28... Qd4 {[%clk 0:00:24.3]} 29. Qg3
{[%clk 0:00:28.5]} 29... Rxb2 {[%clk 0:00:25.3]} 30. Rc1 {[%clk 0:00:19.9]}
30... Rb1 {[%clk 0:00:19.4]} 31. Rxb1 {[%clk 0:00:20.2]} 31... Bxb1 {[%clk
0:00:21.3]} 32. Qb8+ {[%clk 0:00:20.6]} 32... Kg7 {[%clk 0:00:22.1]} 33. Qb7
{[%clk 0:00:19.6]} 33... Qd1+ {[%clk 0:00:19.6]} 34. Kh2 {[%clk 0:00:19.8]}
34... Qd6+ {[%clk 0:00:21.1]} 35. Kg1 {[%clk 0:00:20.1]} 35... Bxa2 {[%clk
0:00:22.2]} 36. Qe4 {[%clk 0:00:20.4]} 36... Qf6 {[%clk 0:00:15.2]} 37. h4
{[%clk 0:00:20.6]} 37... a5 {[%clk 0:00:15.5]} 38. g3 {[%clk 0:00:20.6]} 38...
b4 {[%clk 0:00:16.8]} 39. h5 {[%clk 0:00:21.6]} 39... b3 {[%clk 0:00:15.8]} 40.
h6+ {[%clk 0:00:19.4]} 40... Kxh6 {[%clk 0:00:16.2]} 41. Qe3+ {[%clk 0:00:19]}
41... Kg7 {[%clk 0:00:17.6]} 0-1

[Event "*** Titled Tuesday Blitz"]
[Site "Chess.com"]
[Date "2018.08.07"]
[Round "3"]
[White "Caisachess"]
[Black "dmosesov"]
[Result "1-0"]
[WhiteElo "2246"]
[BlackElo "2255"]
[TimeControl "180+2"]
[EndTime "13:34:56 PDT"]
[Termination "Caisachess won by resignation"]

1. e4 {[%clk 0:03:01.9]} 1... c5 {[%clk 0:03:00.3]} 2. c3 {[%clk 0:03:03]} 2...
d5 {[%clk 0:03:00.8]} 3. exd5 {[%clk 0:03:04.9]} 3... Qxd5 {[%clk 0:03:02.3]} 4.
d4 {[%clk 0:03:06.8]} 4... g6 {[%clk 0:03:03.8]} 5. Nf3 {[%clk 0:03:08.1]} 5...
Bg7 {[%clk 0:03:04.6]} 6. Be3 {[%clk 0:03:09.7]} 6... cxd4 {[%clk 0:03:00.6]} 7.
Bxd4 {[%clk 0:03:10.4]} 7... Nf6 {[%clk 0:02:58.1]} 8. Nbd2 {[%clk 0:03:08.5]}
8... O-O {[%clk 0:02:57.5]} 9. Bc4 {[%clk 0:03:09.9]} 9... Qd8 {[%clk
0:02:55.8]} 10. O-O {[%clk 0:03:11.3]} 10... Nc6 {[%clk 0:02:57]} 11. Be3 {[%clk
0:03:08.7]} 11... Bf5 {[%clk 0:02:57.8]} 12. h3 {[%clk 0:03:08.9]} 12... Qc7
{[%clk 0:02:58.6]} 13. Re1 {[%clk 0:03:03]} 13... Rad8 {[%clk 0:02:55.9]} 14.
Qe2 {[%clk 0:02:57.2]} 14... Na5 {[%clk 0:02:39.9]} 15. Nd4 {[%clk 0:02:51.5]}
15... Nxc4 {[%clk 0:02:24.3]} 16. Qxc4 {[%clk 0:02:51.5]} 16... Qxc4 {[%clk
0:02:22.3]} 17. Nxc4 {[%clk 0:02:53.4]} 17... Bd3 {[%clk 0:02:16.3]} 18. Ne5
{[%clk 0:02:51.1]} 18... Ba6 {[%clk 0:02:08.8]} 19. Nb3 {[%clk 0:02:46.9]} 19...
Nd5 {[%clk 0:01:39.4]} 20. Bxa7 {[%clk 0:02:37.2]} 20... Nf4 {[%clk 0:01:28.3]}
21. Nf3 {[%clk 0:02:10.4]} 21... e6 {[%clk 0:01:14.8]} 22. Bb6 {[%clk
0:02:01.1]} 22... Rd5 {[%clk 0:01:07.8]} 23. Nc5 {[%clk 0:01:49.9]} 23... Rc8
{[%clk 0:00:44]} 24. Nxa6 {[%clk 0:01:50.1]} 24... bxa6 {[%clk 0:00:45.9]} 25.
Bd4 {[%clk 0:01:49]} 25... Nd3 {[%clk 0:00:37.9]} 26. Re2 {[%clk 0:01:47.1]}
26... Rb5 {[%clk 0:00:38.6]} 27. Rb1 {[%clk 0:01:38.8]} 27... e5 {[%clk
0:00:32.8]} 28. Be3 {[%clk 0:01:35]} 28... Rxc3 {[%clk 0:00:25.5]} 29. b3 {[%clk
0:01:29.4]} 29... Rc8 {[%clk 0:00:21.8]} 30. Rd2 {[%clk 0:01:26.1]} 30... e4
{[%clk 0:00:23.1]} 31. Nd4 {[%clk 0:01:24.9]} 31... Rd5 {[%clk 0:00:24.5]} 32.
Ne2 {[%clk 0:01:18.7]} 32... Rdd8 {[%clk 0:00:21.3]} 33. Rbd1 {[%clk 0:01:11]}
33... f5 {[%clk 0:00:21.1]} 34. Nf4 {[%clk 0:01:10.6]} 34... Bc3 {[%clk
0:00:15.9]} 35. Rc2 {[%clk 0:01:10.8]} 35... Nxf4 {[%clk 0:00:16.4]} 36. Rxd8+
{[%clk 0:01:11]} 36... Rxd8 {[%clk 0:00:18.3]} 37. Bxf4 {[%clk 0:01:11.3]} 37...
Bg7 {[%clk 0:00:18.2]} 38. Rc6 {[%clk 0:01:11.2]} 38... a5 {[%clk 0:00:19.6]}
39. Rc5 {[%clk 0:01:10]} 39... Ra8 {[%clk 0:00:18.8]} 40. a4 {[%clk 0:01:10.5]}
40... Rb8 {[%clk 0:00:19.3]} 41. Rb5 {[%clk 0:01:11.6]} 41... Rxb5 {[%clk
0:00:19.7]} 42. axb5 {[%clk 0:01:13.5]} 42... Bd4 {[%clk 0:00:21]} 43. Bc7
{[%clk 0:01:13.1]} 43... Kf7 {[%clk 0:00:14.4]} 44. b6 {[%clk 0:01:14.3]} 44...
Ke6 {[%clk 0:00:15.9]} 45. b7 {[%clk 0:01:14.9]} 45... Ba7 {[%clk 0:00:17.5]}
46. b8=Q {[%clk 0:01:16.2]} 46... Bxb8 {[%clk 0:00:19]} 47. Bxb8 {[%clk
0:01:18.1]} 47... Kd5 {[%clk 0:00:20.5]} 48. Bc7 {[%clk 0:01:18.7]} 48... Kd4
{[%clk 0:00:16.9]} 49. Bxa5 {[%clk 0:01:19.6]} 49... f4 {[%clk 0:00:18.4]} 50.
Kf1 {[%clk 0:01:20]} 50... g5 {[%clk 0:00:19.2]} 51. Ke2 {[%clk 0:01:20.9]}
51... h5 {[%clk 0:00:20.1]} 52. Bd8 {[%clk 0:01:20.6]} 52... g4 {[%clk
0:00:21.1]} 53. hxg4 {[%clk 0:01:21.6]} 53... hxg4 {[%clk 0:00:23]} 54. Bc7
{[%clk 0:01:20.7]} 54... f3+ {[%clk 0:00:23.3]} 55. gxf3 {[%clk 0:01:21.4]}
55... exf3+ {[%clk 0:00:24.4]} 56. Kd2 {[%clk 0:01:22.6]} 56... Kc5 {[%clk
0:00:24.9]} 57. Kc3 {[%clk 0:01:22.6]} 57... Kc6 {[%clk 0:00:26.3]} 58. Bf4
{[%clk 0:01:23.7]} 58... Kb5 {[%clk 0:00:27.8]} 59. b4 {[%clk 0:01:24.6]} 59...
Kb6 {[%clk 0:00:29.2]} 60. Kc4 {[%clk 0:01:25.8]} 60... Kc6 {[%clk 0:00:30.7]}
61. b5+ {[%clk 0:01:26.8]} 61... Kb6 {[%clk 0:00:32.2]} 62. Be3+ {[%clk
0:01:26.9]} 62... Kb7 {[%clk 0:00:32.9]} 63. Kc5 {[%clk 0:01:28.3]} 63... g3
{[%clk 0:00:31.3]} 64. fxg3 {[%clk 0:01:29.2]} 1-0